fUSD/lending_fUSD_20250923
["ID","MTS","AMOUNT","RATE_DAILY","PERIOD"]
[387136030,1758588716813,-1262.42,0.00022189,2]
[387136031,1758588716823,-400.0,0.00022189,2]
[387136032,1758588716834,-400.0,0.00022189,2]
[387136033,1758588716844,-402.51,0.00022189,2]
[387136034,1758588716854,-534.96,0.00022189,2]
[387136035,1758588716864,-400.0,0.00022189,2]
[387136036,1758588716874,-796.01,0.00022189,2]
[387136037,1758588716884,-400.0,0.00022189,2]
[387136038,1758588716894,-431.35,0.00022189,2]
[387136039,1758588716904,-2335.81,0.00022189,2]
[387136040,1758588716914,-400.0,0.00022189,2]
[387136041,1758588716924,-1029.46,0.00022189,2]
[387136042,1758588716934,-465.65,0.00022189,2]
[387136043,1758588716943,-400.0,0.00022189,2]
[387136044,1758588716953,-1832.67,0.00022189,2]
[387136045,1758588716963,-1616.25,0.00022189,2]
[387136046,1758588716972,-400.0,0.00022189,2]
[387136047,1758588716982,-400.0,0.00022189,2]
[387136048,1758588716994,-836.01,0.00022189,2]
[387136049,1758588717004,-400.0,0.00022189,2]
[387136050,1758588717014,-400.0,0.00022189,2]
[387136051,1758588717024,-400.0,0.00022189,2]
[387136052,1758588717033,-400.0,0.00022189,2]
[387136053,1758588717043,-1061.09,0.00022189,2]
[387136054,1758588717053,-522.0,0.00022189,2]
[387136055,1758588717065,-400.0,0.00022189,2]
[387136056,1758588717076,-400.0,0.00022189,2]
[387136057,1758588717086,-400.0,0.00022189,2]
[387136058,1758588717100,-500.0,0.00022189,2]
[387136059,1758588717111,-3384.62,0.00022189,2]
[387136060,1758588717122,-400.0,0.00022189,2]
[387136061,1758588717133,-2060.76,0.00022189,2]
[387136062,1758588717144,-530.11,0.00022189,2]
[387136063,1758588717154,-530.0,0.00022189,2]
[387136064,1758588717165,-922.13,0.00022189,2]
[387136065,1758588717177,-400.0,0.00022189,2]
[387136066,1758588717189,-400.0,0.00022189,2]
[387136067,1758588717200,-754.65,0.00022189,2]
[387136068,1758588717210,-400.0,0.00022189,2]
[387136069,1758588717222,-400.0,0.00022189,2]
[387136070,1758588717233,-400.0,0.00022189,2]
[387136071,1758588717245,-508.94,0.00022189,2]
[387136072,1758588717255,-400.0,0.00022189,2]
[387136073,1758588717265,-1169.65,0.00022189,2]
[387136074,1758588717276,-1903.352168,0.00022189,2]
[387136075,1758588717287,-400.0,0.0002219,2]
[387136076,1758588717297,-400.0,0.0002219,2]
[387136077,1758588717307,-400.0,0.0002219,2]
[387136078,1758588717316,-400.0,0.0002219,2]
[387136079,1758588717327,-424.059086,0.0002219,2]
[387136080,1758588717339,-400.0,0.0002219,2]
[387136081,1758588717348,-400.0,0.0002219,2]
[387136082,1758588717358,-400.0,0.0002219,2]
[387136083,1758588717367,-674.13,0.0002219,2]
[387136084,1758588717378,-400.0,0.0002219,2]
[387136085,1758588717388,-490.65,0.0002219,2]
[387136086,1758588717399,-500.0,0.0002219,2]
[387136087,1758588717409,-400.0,0.0002219,2]
[387136088,1758588717420,-410.63,0.0002219,2]
[387136089,1758588717429,-400.0,0.0002219,2]
[387136090,1758588717439,-750.91,0.0002219,2]
[387136091,1758588717448,-400.0,0.0002219,2]
[387136092,1758588717458,-554.46,0.0002219,2]
[387136093,1758588717468,-544.47,0.0002219,2]
[387136094,1758588717478,-403.99,0.0002219,2]
[387136095,1758588717487,-859.26,0.0002219,2]
[387136096,1758588717497,-400.0,0.0002219,2]
[387136097,1758588717507,-660.35,0.0002219,2]
[387136098,1758588717517,-410.37,0.0002219,2]
[387136099,1758588717527,-400.0,0.0002219,2]
[387136100,1758588717537,-1016.77,0.0002219,2]
[387136101,1758588717547,-400.0,0.0002219,2]
[387136102,1758588717557,-400.0,0.0002219,2]
[387136103,1758588717567,-484.13,0.0002219,2]
[387136104,1758588717577,-682.51,0.0002219,2]
[387136105,1758588717587,-400.0,0.0002219,2]
[387136106,1758588717597,-400.0,0.0002219,2]
[387136107,1758588717832,-588.84,0.0002219,2]
[387136108,1758588717842,-527.41,0.0002219,2]
[387136109,1758588717852,-527.34067413,0.0002219,2]
[387136110,1758588717864,-400.0,0.0002219,2]
[387136111,1758588717873,-769.14,0.0002219,2]
[387136112,1758588717885,-400.0,0.0002219,2]
[387136113,1758588717896,-400.0,0.0002219,2]
[387136114,1758588717906,-400.0,0.0002219,2]
[387136115,1758588717916,-450.01,0.0002219,2]
[387136116,1758588717925,-400.0,0.0002219,2]
[387136117,1758588717934,-400.0,0.0002219,2]
[387136118,1758588717944,-400.0,0.0002219,2]
[387136119,1758588717953,-495.05,0.0002219,2]
[387136120,1758588717963,-593.36,0.0002219,2]
[387136121,1758588717972,-445.15,0.0002219,2]
[387136122,1758588717981,-769.03,0.0002219,2]
[387136123,1758588717991,-537.23,0.0002219,2]
[387136124,1758588718000,-310.1,0.0002219,2]
[387136125,1758588718009,-400.0,0.0002219,2]
[387136126,1758588718019,-400.0,0.0002219,2]
[387136127,1758588718028,-400.0,0.0002219,2]
[387136128,1758588718038,-400.0,0.0002219,2]
[387136129,1758588718048,-1440.81,0.0002219,2]
[387136130,1758588718057,-2249.616654,0.0002219,2]
[387136131,1758588718067,-400.0,0.0002219,2]
[387136132,1758588718077,-501.01,0.0002219,2]
[387136133,1758588718086,-493.6,0.0002219,2]
[387136134,1758588718100,-400.0,0.0002219,2]
[387136135,1758588718109,-969.65,0.0002219,2]
[387136136,1758588718118,-433.42,0.0002219,2]
[387136137,1758588718128,-577.66,0.0002219,2]
[387136138,1758588718138,-803.42,0.0002219,2]
[387136139,1758588718147,-651.06,0.0002219,2]
[387136140,1758588718156,-400.0,0.0002219,2]
[387136141,1758588718165,-414.87,0.0002219,2]
[387136142,1758588718174,-602.08,0.0002219,2]
[387136143,1758588718184,-400.0,0.0002219,2]
[387136144,1758588718195,-400.0,0.0002219,2]
[387136145,1758588718205,-697.68,0.0002219,2]
[387136146,1758588718215,-1169.47,0.0002219,2]
[387136147,1758588718225,-400.0,0.0002219,2]
[387136148,1758588718237,-514.36,0.0002219,2]
[387136149,1758588718247,-440.26,0.0002219,2]
[387136150,1758588718258,-593.88,0.0002219,2]
[387136151,1758588718268,-1060.97,0.0002219,2]
[387136152,1758588718278,-743.55,0.0002219,2]
[387136153,1758588718289,-620.51,0.0002219,2]
[387136154,1758588718299,-400.0,0.0002219,2]
[387136155,1758588718310,-695.32,0.0002219,2]
[387136156,1758588718320,-447.81,0.0002219,2]
[387136157,1758588718331,-909.99,0.0002219,2]
[387136158,1758588718341,-400.0,0.0002219,2]
[387136159,1758588718351,-400.0,0.0002219,2]
[387136160,1758588718361,-609.54,0.0002219,2]
[387136161,1758588718371,-400.0,0.0002219,2]
[387136162,1758588718382,-503.16,0.0002219,2]
[387136163,1758588718393,-652.42,0.0002219,2]
[387136164,1758588718403,-1926.15,0.0002219,2]
[387136165,1758588718413,-808.98,0.0002219,2]
[387136166,1758588718423,-997.93,0.0002219,2]
[387136167,1758588718434,-2763.9,0.0002219,2]
[387136168,1758588718445,-822.69,0.0002219,2]
[387136169,1758588718454,-1231.62,0.0002219,2]
[387136170,1758588718464,-435.88,0.0002219,2]
[387136171,1758588718474,-400.0,0.0002219,2]
[387136172,1758588718483,-1881.3,0.0002219,2]
[387136173,1758588718492,-400.0,0.0002219,2]
[387136174,1758588718502,-1082.02,0.0002219,2]
[387136175,1758588718511,-703.54,0.0002219,2]
[387136176,1758588718520,-471.61,0.0002219,2]
[387136177,1758588718530,-698.95,0.0002219,2]
[387136178,1758588718539,-422.43,0.0002219,2]
[387136179,1758588718548,-665.52,0.0002219,2]
[387136180,1758588718557,-1517.07,0.0002219,2]
[387136181,1758588718567,-1290.57,0.0002219,2]
[387136182,1758588718577,-599.8,0.0002219,2]
[387136183,1758588718586,-864.51,0.0002219,2]
[387136184,1758588718596,-700.22,0.0002219,2]
[387136185,1758588718607,-578.19,0.0002219,2]
[387136186,1758588718618,-400.0,0.0002219,2]
[387136187,1758588718627,-1270.12,0.0002219,2]
[387136188,1758588718638,-529.42,0.0002219,2]
[387136189,1758588718647,-1179.29,0.0002219,2]
[387136190,1758588718657,-790.42,0.0002219,2]
[387136191,1758588718669,-546.07,0.0002219,2]
[387136192,1758588718678,-796.17,0.0002219,2]
[387136193,1758588718689,-1797.38,0.0002219,2]
[387136194,1758588718699,-1067.68,0.0002219,2]
[387136195,1758588718709,-685.94,0.0002219,2]
[387136196,1758588718719,-400.0,0.0002219,2]
[387136197,1758588718728,-400.0,0.0002219,2]
[387136198,1758588718738,-4410.79,0.0002219,2]
[387136199,1758588718748,-400.0,0.0002219,2]
[387136200,1758588718759,-400.0,0.0002219,2]
[387136201,1758588718769,-635.32,0.0002219,2]
[387136202,1758588718779,-825.39,0.0002219,2]
[387136203,1758588718788,-1159.17,0.0002219,2]
[387136204,1758588718797,-3621.17,0.0002219,2]
[387136205,1758588718807,-536.01,0.0002219,2]
[387136206,1758588718816,-1555.92,0.0002219,2]
[387136207,1758588718826,-685.82,0.0002219,2]
[387136208,1758588718835,-400.0,0.0002219,2]
[387136209,1758588718845,-268.19,0.0002219,2]
[387136210,1758588718854,-1688.59,0.0002219,2]
[387136211,1758588718863,-533.54,0.0002219,2]
[387136212,1758588718873,-3199.7,0.0002219,2]
[387136213,1758588718883,-400.0,0.0002219,2]
[387136214,1758588718893,-5083.46,0.0002219,2]
[387136215,1758588718903,-532.7,0.0002219,2]
[387136216,1758588718912,-726.03,0.0002219,2]
[387136217,1758588718922,-1692.11,0.0002219,2]
[387136218,1758588718932,-633.11,0.0002219,2]
[387136219,1758588718941,-411.61,0.0002219,2]
[387136220,1758588718950,-648.3,0.0002219,2]
[387136221,1758588718960,-857.03,0.0002219,2]
[387136222,1758588718970,-722.01,0.0002219,2]
[387136223,1758588718981,-1108.24,0.0002219,2]
[387136224,1758588718992,-464.86,0.0002219,2]
[387136225,1758588719004,-2367.09,0.0002219,2]
[387136226,1758588719013,-400.0,0.0002219,2]
[387136227,1758588719024,-317.34,0.0002219,2]
[387136228,1758588719035,-1636.84,0.0002219,2]
[387136229,1758588719046,-2136.91,0.0002219,2]
[387136230,1758588719056,-555.5,0.0002219,2]
[387136231,1758588719066,-914.0,0.0002219,2]
[387136232,1758588719077,-887.03,0.0002219,2]
[387136233,1758588719088,-4785.63,0.0002219,2]
[387136234,1758588719106,-1767.45,0.0002219,2]
[387136235,1758588719115,-1514.68,0.0002219,2]
[387136236,1758588719127,-553.9,0.0002219,2]
[387136237,1758588719139,-644.46,0.0002219,2]
[387136238,1758588719149,-434.59,0.0002219,2]
[387136239,1758588719158,-1093.45,0.0002219,2]
[387136240,1758588719169,-500.0,0.0002219,2]
[387136241,1758588719179,-400.0,0.0002219,2]
[387136242,1758588719188,-2259.45,0.0002219,2]
[387136243,1758588719198,-1283.49,0.0002219,2]
[387136244,1758588719211,-1392.04,0.0002219,2]
[387136245,1758588719221,-579.07,0.0002219,2]
[387136246,1758588719231,-400.0,0.0002219,2]
[387136247,1758588719241,-400.0,0.0002219,2]
[387136248,1758588719250,-586.63,0.0002219,2]
[387136249,1758588719261,-852.34,0.0002219,2]
[387136250,1758588719271,-400.0,0.0002219,2]
[387136251,1758588719281,-602.29,0.0002219,2]
[387136252,1758588719290,-2120.46,0.0002219,2]
[387136253,1758588719299,-400.0,0.0002219,2]
[387136254,1758588719309,-730.17,0.0002219,2]
[387136255,1758588719318,-713.11,0.0002219,2]
[387136256,1758588719327,-691.38,0.0002219,2]
[387136257,1758588719336,-400.0,0.0002219,2]
[387136258,1758588719346,-824.24,0.0002219,2]
[387136259,1758588719355,-2178.93,0.0002219,2]
[387136260,1758588719364,-563.68,0.0002219,2]
[387136261,1758588719373,-400.0,0.0002219,2]
[387136262,1758588719384,-624.27,0.0002219,2]
[387136263,1758588719394,-1279.8,0.0002219,2]
[387136264,1758588719403,-400.0,0.0002219,2]
[387136265,1758588719412,-400.0,0.0002219,2]
[387136266,1758588719423,-260.29,0.00022191,2]
[387136267,1758588719432,-400.0,0.00022191,2]
[387136268,1758588719441,-400.0,0.00022191,2]
[387136269,1758588719450,-162.38,0.00022191,2]
[387136270,1758588719459,-400.0,0.00022191,2]
[387136271,1758588719468,-400.0,0.00022191,2]
[387136272,1758588719477,-213.83,0.00022191,2]
[387136273,1758588719487,-400.0,0.00022191,2]
[387136274,1758588719496,-400.0,0.00022191,2]
[387136275,1758588719505,-400.0,0.00022191,2]
[387136276,1758588719514,-400.0,0.00022191,2]
[387136277,1758588719524,-400.0,0.00022191,2]
[387136278,1758588719533,-400.0,0.00022191,2]
[387136279,1758588719543,-400.0,0.00022191,2]
[387136280,1758588719554,-555.17,0.00022191,2]
[387136281,1758588719565,-491.16,0.00022191,2]
[387136282,1758588719575,-400.0,0.00022191,2]
[387136283,1758588719584,-400.0,0.00022191,2]
[387136284,1758588719593,-400.0,0.00022191,2]
[387136285,1758588719602,-416.06,0.00022191,2]
[387136286,1758588719611,-439.92,0.00022191,2]
[387136287,1758588719621,-400.0,0.00022191,2]
[387136288,1758588719630,-528.61,0.00022191,2]
[387136289,1758588719640,-400.0,0.00022191,2]
[387136290,1758588719650,-400.0,0.00022191,2]
[387136291,1758588719659,-428.44,0.00022191,2]
[387136292,1758588719670,-400.0,0.00022191,2]
[387136293,1758588719679,-400.0,0.00022191,2]
[387136294,1758588719689,-400.0,0.00022191,2]
[387136295,1758588719698,-400.0,0.00022191,2]
[387136296,1758588719707,-400.0,0.00022191,2]
[387136297,1758588719717,-400.0,0.00022191,2]
[387136298,1758588719726,-545.76,0.00022191,2]
[387136299,1758588719736,-400.0,0.00022191,2]
[387136300,1758588719745,-400.0,0.00022191,2]
[387136301,1758588719754,-754.63,0.00022191,2]
[387136302,1758588719765,-403.38,0.00022191,2]
[387136303,1758588719775,-917.82,0.00022191,2]
[387136304,1758588719785,-400.0,0.00022191,2]
[387136305,1758588719796,-400.0,0.00022191,2]
[387136306,1758588719806,-504.07,0.00022191,2]
[387136307,1758588719816,-535.33,0.00022191,2]
[387136308,1758588719827,-414.45,0.00022191,2]
[387136309,1758588719837,-597.93,0.00022191,2]
[387136310,1758588719848,-400.0,0.00022191,2]
[387136311,1758588719859,-599.79,0.00022191,2]
[387136312,1758588719868,-512.84,0.00022191,2]
[387136313,1758588719880,-400.0,0.00022191,2]
[387136314,1758588719892,-830.32,0.00022191,2]
[387136315,1758588719902,-400.0,0.00022191,2]
[387136316,1758588719913,-400.0,0.00022191,2]
[387136317,1758588719923,-400.0,0.00022191,2]
[387136318,1758588719932,-400.0,0.00022191,2]
[387136319,1758588719941,-877.74,0.00022191,2]
[387136320,1758588719950,-454.04,0.00022191,2]
[387136321,1758588719959,-944.31,0.00022191,2]
[387136322,1758588719969,-400.0,0.00022191,2]
[387136323,1758588719978,-866.7,0.00022191,2]
[387136324,1758588719988,-400.0,0.00022191,2]
[387136325,1758588719997,-983.28,0.00022191,2]
[387136326,1758588720007,-400.0,0.00022191,2]
[387136327,1758588720017,-722.94,0.00022191,2]
[387136328,1758588720028,-400.0,0.00022191,2]
[387136329,1758588720038,-542.91,0.00022191,2]
[387136330,1758588720047,-400.0,0.00022191,2]
[387136331,1758588720056,-559.02,0.00022191,2]
[387136332,1758588720067,-531.68,0.00022191,2]
[387136333,1758588720076,-400.0,0.00022191,2]
[387136334,1758588720085,-682.63,0.00022191,2]
[387136335,1758588720099,-400.0,0.00022191,2]
[387136336,1758588720108,-461.64,0.00022191,2]
[387136337,1758588720118,-400.0,0.00022191,2]
[387136338,1758588720128,-671.51,0.00022191,2]
[387136339,1758588720138,-400.0,0.00022191,2]
[387136340,1758588720147,-404.72,0.00022191,2]
[387136341,1758588720157,-400.0,0.00022191,2]
[387136342,1758588720167,-607.71,0.00022191,2]
[387136343,1758588720176,-400.0,0.00022191,2]
[387136344,1758588720263,-400.0,0.00022191,2]
[387136345,1758588720275,-421.51,0.00022191,2]
[387136346,1758588720284,-965.94,0.00022191,2]
[387136347,1758588720293,-596.18,0.00022191,2]
[387136348,1758588720302,-400.0,0.00022191,2]
[387136349,1758588720312,-400.0,0.00022191,2]
[387136350,1758588720322,-417.6,0.00022191,2]
[387136351,1758588720331,-779.83,0.00022191,2]
[387136352,1758588720340,-400.0,0.00022191,2]
[387136353,1758588720350,-400.0,0.00022191,2]
[387136354,1758588720359,-400.0,0.00022191,2]
[387136355,1758588720368,-720.23,0.00022191,2]
[387136356,1758588720377,-400.0,0.00022191,2]
[387136357,1758588720387,-432.08,0.00022191,2]
[387136358,1758588720396,-926.5,0.00022191,2]
[387136359,1758588720406,-400.0,0.00022191,2]
[387136360,1758588720415,-453.42,0.00022191,2]
[387136361,1758588720425,-400.0,0.00022191,2]
[387136362,1758588720435,-400.0,0.00022191,2]
[387136363,1758588720444,-499.27,0.00022191,2]
[387136364,1758588720454,-415.36,0.00022191,2]
[387136365,1758588720463,-400.0,0.00022191,2]
[387136366,1758588720473,-1064.17,0.00022191,2]
[387136367,1758588720483,-520.51,0.00022191,2]
[387136368,1758588720492,-400.0,0.00022191,2]
[387136369,1758588720501,-400.0,0.00022191,2]
[387136370,1758588720511,-400.0,0.00022191,2]
[387136371,1758588720520,-400.0,0.00022191,2]
[387136372,1758588720529,-428.67,0.00022191,2]
[387136373,1758588720539,-400.0,0.00022191,2]
[387136374,1758588720549,-427.84,0.00022191,2]
[387136375,1758588720559,-400.0,0.00022191,2]
[387136376,1758588720569,-400.0,0.00022191,2]
[387136377,1758588720578,-715.39,0.00022191,2]
[387136378,1758588720588,-515.86,0.00022191,2]
[387136379,1758588720597,-400.0,0.00022191,2]
[387136380,1758588720607,-400.0,0.00022191,2]
[387136381,1758588720617,-1049.53,0.00022191,2]
[387136382,1758588720627,-400.0,0.00022191,2]
[387136383,1758588720637,-400.0,0.00022191,2]
[387136384,1758588720648,-400.0,0.00022191,2]
[387136385,1758588720657,-669.85,0.00022191,2]
[387136386,1758588720667,-524.43,0.00022191,2]
[387136387,1758588720680,-480.73,0.00022191,2]
[387136388,1758588720689,-418.66,0.00022191,2]
[387136389,1758588720699,-400.0,0.00022191,2]
[387136390,1758588720709,-263.07,0.00022191,2]
[387136391,1758588720718,-645.11,0.00022191,2]
[387136392,1758588720728,-521.7,0.00022191,2]
[387136393,1758588720738,-3259.34,0.00022191,2]
[387136394,1758588720747,-400.0,0.00022191,2]
[387136395,1758588720756,-400.0,0.00022191,2]
[387136396,1758588720764,-819.08,0.00022191,2]
[387136397,1758588720774,-400.0,0.00022191,2]
[387136398,1758588720783,-527.41,0.00022191,2]
[387136399,1758588720792,-711.41,0.00022191,2]
[387136400,1758588720802,-154.36,0.00022191,2]
[387136401,1758588720812,-400.0,0.00022191,2]
[387136402,1758588720823,-707.11,0.00022191,2]
[387136403,1758588720832,-4823.52,0.00022191,2]
[387136404,1758588720842,-1811.93,0.00022191,2]
[387136405,1758588720852,-293.34,0.00022191,2]
[387136406,1758588720861,-658.31,0.00022191,2]
[387136407,1758588720871,-1161.68,0.00022191,2]
[387136408,1758588720879,-751.69,0.00022191,2]
[387136409,1758588720889,-532.84,0.00022191,2]
[387136410,1758588720898,-760.3,0.00022191,2]
[387136411,1758588720907,-547.69,0.00022191,2]
[387136412,1758588720916,-400.0,0.00022191,2]
[387136413,1758588720928,-427.52,0.00022191,2]
[387136414,1758588720938,-400.0,0.00022191,2]
[387136415,1758588720947,-500.42,0.00022191,2]
[387136416,1758588720955,-450.15,0.00022191,2]
[387136417,1758588720965,-535.91,0.00022191,2]
[387136418,1758588720974,-440.64,0.00022191,2]
[387136419,1758588720983,-839.22,0.00022191,2]
[387136420,1758588720993,-1017.53,0.00022191,2]
[387136421,1758588721002,-506.41,0.00022191,2]
[387136422,1758588721011,-400.0,0.00022191,2]
[387136423,1758588721020,-9183.84,0.00022191,2]
[387136424,1758588721029,-400.0,0.00022191,2]
[387136425,1758588721039,-400.0,0.00022191,2]
[387136426,1758588721048,-451.23,0.00022191,2]
[387136427,1758588721057,-400.0,0.00022191,2]
[387136428,1758588721066,-894.16,0.00022191,2]
[387136429,1758588721075,-683.2,0.00022191,2]
[387136430,1758588721084,-1123.88,0.00022191,2]
[387136431,1758588721094,-406.45,0.00022191,2]
[387136432,1758588721108,-1005.19,0.00022191,2]
[387136433,1758588721117,-808.52,0.00022191,2]
[387136434,1758588721126,-1110.73,0.00022191,2]
[387136435,1758588721135,-400.0,0.00022191,2]
[387136436,1758588721149,-1205.76,0.00022191,2]
[387136437,1758588721158,-400.0,0.00022191,2]
[387136438,1758588721168,-741.22,0.00022191,2]
[387136439,1758588721180,-568.75588051,0.00022192,2]
[387136440,1758588721189,-298.84,0.00022195,2]
[387136441,1758588721198,-1605.36722754,0.00022195,2]
[387136442,1758588721207,-1000.0,0.000222,2]
[387136443,1758588721218,-1714.1544707,0.00022247,2]
[387136444,1758588721231,-1000.0,0.00022264,2]
[387136445,1758588721240,-1000.0,0.00022279,2]
[387136446,1758588721249,-174.54391,0.0002228,2]
[387136447,1758588721259,-196.5,0.000223,2]
[387136448,1758588721268,-331.56,0.00022325,2]
[387136449,1758588721277,-500.0,0.00022342,2]
[387136450,1758588721286,-500.0,0.00022342,2]
[387136451,1758588721295,-500.0,0.00022342,2]
[387136452,1758588721304,-500.0,0.00022342,2]
[387136453,1758588721315,-1147.07646305,0.00022356,2]
[387136454,1758588721324,-1714.1544707,0.00022356,2]
[387136455,1758588721333,-20824.99606163,0.00022359,2]
[387136456,1758588721342,-3069.88026976,0.00022364,2]
[387136457,1758588721351,-157.41684956,0.00022365,2]
[387136458,1758588721360,-458.16,0.00022374,2]
[387136459,1758588721369,-2351.0,0.00022379,2]
[387136460,1758588721378,-1000.0,0.00022405,2]
[387136461,1758588721387,-691.38,0.00022438,2]
[387136462,1758588721396,-691.38,0.00022438,2]
[387136463,1758588721405,-691.38,0.00022438,2]
[387136464,1758588721414,-691.38,0.00022438,2]
[387136465,1758588721423,-691.45396144,0.00022438,2]
[387136466,1758588721432,-1714.1544707,0.00022438,2]
[387136467,1758588721441,-154.80093955,0.00022444,2]
[387136468,1758588721450,-150.0,0.00022453,2]
[387136469,1758588721460,-255.58,0.00022458,2]
[387136470,1758588721469,-400.0,0.00022458,2]
[387136471,1758588721478,-500.0,0.00022459,2]
[387136472,1758588721487,-150.0,0.00022459,2]
[387136473,1758588721496,-500.0,0.00022459,2]
[387136474,1758588721505,-150.0,0.00022459,2]
[387136475,1758588721514,-500.0,0.00022459,2]
[387136476,1758588721523,-1741.0,0.00022459,2]
[387136477,1758588721531,-496.0,0.00022459,2]
[387136478,1758588721541,-150.0,0.00022459,2]
[387136479,1758588721550,-500.0,0.00022459,2]
[387136480,1758588721560,-539.0,0.00022459,2]
[387136481,1758588721570,-500.0,0.00022459,2]
[387136482,1758588721580,-400.0,0.00022459,2]
[387136483,1758588721590,-400.0,0.00022459,2]
[387136484,1758588721599,-553.8,0.00022459,2]
[387136485,1758588721608,-400.0,0.00022459,2]
[387136486,1758588721618,-400.0,0.00022459,2]
[387136487,1758588721627,-400.0,0.00022459,2]
[387136488,1758588721637,-739.8,0.00022459,2]
[387136489,1758588721647,-631.13,0.00022459,2]
[387136490,1758588721656,-400.0,0.00022459,2]
[387136491,1758588721665,-400.0,0.00022459,2]
[387136492,1758588721674,-400.0,0.00022459,2]
[387136493,1758588721684,-400.0,0.00022459,2]
[387136494,1758588721694,-400.0,0.00022459,2]
[387136495,1758588721703,-400.0,0.00022459,2]
[387136496,1758588721713,-455.09,0.00022459,2]
[387136497,1758588721723,-400.0,0.00022462,2]
[387136498,1758588721734,-500.0,0.00022463,2]
[387136499,1758588721743,-400.0,0.00022463,2]
[387136500,1758588721752,-445.49,0.00022463,2]
[387136501,1758588721762,-433.86,0.00022463,2]
[387136502,1758588721771,-305.16,0.00022463,2]
[387136503,1758588721781,-400.0,0.00022463,2]
[387136504,1758588721791,-407.53,0.00022463,2]
[387136505,1758588721801,-400.0,0.00022463,2]
[387136506,1758588721811,-369.26,0.00022463,2]
[387136507,1758588721821,-231.02,0.00022463,2]
[387136508,1758588721830,-400.0,0.00022463,2]
[387136509,1758588721840,-400.0,0.00022463,2]
[387136510,1758588721849,-400.0,0.00022463,2]
[387136511,1758588721859,-400.0,0.00022463,2]
[387136512,1758588721868,-400.0,0.00022463,2]
[387136513,1758588721878,-417.58,0.00022463,2]
[387136514,1758588721888,-400.0,0.00022463,2]
[387136515,1758588721898,-400.0,0.00022463,2]
[387136516,1758588721907,-400.0,0.00022463,2]
[387136517,1758588721917,-400.0,0.00022463,2]
[387136518,1758588721928,-236.34,0.00022463,2]
[387136519,1758588721938,-400.0,0.00022463,2]
[387136520,1758588721947,-400.0,0.00022463,2]
[387136521,1758588721957,-400.0,0.00022463,2]
[387136522,1758588721967,-729.73,0.00022463,2]
[387136523,1758588721977,-247.94,0.00022463,2]
[387136524,1758588721986,-400.0,0.00022463,2]
[387136525,1758588721996,-1262.42,0.00022463,2]
[387136526,1758588722006,-400.0,0.00022463,2]
[387136527,1758588722015,-400.0,0.00022463,2]
[387136528,1758588722025,-402.51,0.00022463,2]
[387136529,1758588722035,-400.0,0.00022463,2]